fUST/lending_fUST_20250829
["ID","MTS","AMOUNT","RATE_DAILY","PERIOD"]
[381930861,1756417840228,-480.0,0.00019452,2]
[381930862,1756417840239,-480.0,0.00019452,2]
[381930863,1756417840249,-1374.55,0.00019452,2]
[381930864,1756417840258,-480.0,0.00019452,2]
[381930865,1756417840267,-480.0,0.00019452,2]
[381930866,1756417840277,-480.0,0.00019452,2]
[381930867,1756417840286,-257.43,0.00019452,2]
[381930868,1756417840295,-480.0,0.00019452,2]
[381930869,1756417840305,-480.0,0.00019452,2]
[381930870,1756417840315,-314.01,0.00019452,2]
[381930871,1756417840327,-480.0,0.00019452,2]
[381930872,1756417840337,-480.0,0.00019452,2]
[381930873,1756417840347,-480.0,0.00019452,2]
[381930874,1756417840356,-480.0,0.00019452,2]
[381930875,1756417840366,-480.0,0.00019452,2]
[381930877,1756417840375,-480.0,0.00019452,2]
[381930878,1756417840383,-2551.36,0.00019452,2]
[381930879,1756417840392,-480.0,0.00019452,2]
[381930880,1756417840401,-480.0,0.00019452,2]
[381930881,1756417840409,-480.0,0.00019452,2]
[381930882,1756417840419,-480.0,0.00019452,2]
[381930884,1756417840428,-480.0,0.00019452,2]
[381930886,1756417840437,-837.6,0.00019452,2]
[381930888,1756417840447,-480.0,0.00019452,2]
[381930890,1756417840456,-2372.0,0.00019452,2]
[381930892,1756417840465,-480.0,0.00019452,2]
[381930894,1756417840474,-480.0,0.00019452,2]
[381930895,1756417840483,-480.0,0.00019452,2]
[381930897,1756417840492,-480.0,0.00019452,2]
[381930900,1756417840504,-960.11,0.00019452,2]
[381930902,1756417840513,-247.13,0.00019452,2]
[381930903,1756417840523,-1355.92,0.00019452,2]
[381930905,1756417840532,-480.0,0.00019452,2]
[381930906,1756417840542,-480.0,0.00019452,2]
[381930907,1756417840551,-480.0,0.00019452,2]
[381930908,1756417840562,-480.0,0.00019452,2]
[381930909,1756417840575,-420.0,0.00019624,2]
[381930910,1756417840584,-436.2,0.00019726,2]
[381930911,1756417840594,-480.0,0.00019726,2]
[381930912,1756417840603,-480.0,0.00019726,2]
[381930913,1756417840612,-480.0,0.00019726,2]
[381930914,1756417840622,-480.0,0.00019726,2]
[381930915,1756417840631,-480.0,0.00019726,2]
[381930916,1756417840640,-984.96,0.00019726,2]
[381930917,1756417840649,-480.0,0.00019726,2]
[381930918,1756417840658,-480.0,0.00019726,2]
[381930919,1756417840667,-480.0,0.00019726,2]
[381930920,1756417840676,-480.0,0.00019726,2]
[381930921,1756417840685,-480.0,0.00019726,2]
[381930922,1756417840694,-1374.55,0.00019726,2]
[381930923,1756417840703,-480.0,0.00019726,2]
[381930924,1756417840712,-555.35,0.00019726,2]
[381930925,1756417840721,-480.0,0.00019726,2]
[381930926,1756417840732,-480.0,0.00019726,2]
[381930927,1756417840744,-480.0,0.00019726,2]
[381930928,1756417840759,-480.0,0.00019726,2]
[381930929,1756417840772,-2551.36,0.00019726,2]
[381930930,1756417840786,-480.0,0.00019726,2]
[381930931,1756417840797,-480.0,0.00019726,2]
[381930932,1756417840808,-480.0,0.00019726,2]
[381930933,1756417840820,-480.0,0.00019726,2]
[381930934,1756417840831,-837.6,0.00019726,2]
[381930935,1756417840841,-2372.0,0.00019726,2]
[381930936,1756417840851,-480.0,0.00019726,2]
[381930937,1756417840862,-480.0,0.00019726,2]
[381930938,1756417840873,-960.11,0.00019726,2]
[381930939,1756417840884,-1355.92,0.00019726,2]
[381930940,1756417840896,-480.0,0.00019726,2]
[381930941,1756417840911,-480.0,0.00019726,2]
[381930942,1756417840928,-187.78006525,0.00019812,2]
[381930943,1756417840938,-150.3830194,0.00019838,2]
[381930944,1756417840949,-313.414804,0.00019863,2]
[381930945,1756417840962,-3308.73721785,0.000199,2]
[381930946,1756417840974,-500.0,0.00019973,2]
[381930947,1756417840985,-25103.72433049,0.0002,2]
[381930948,1756417840998,-18216.3850258,0.0002,2]
[381930949,1756417841010,-155.754415,0.0002,2]
[381930950,1756417841024,-480.0,0.0002,2]
[381930951,1756417841036,-480.0,0.0002,2]
[381930952,1756417841050,-480.0,0.0002,2]
[381930953,1756417841063,-480.0,0.0002,2]
[381930954,1756417841073,-480.0,0.0002,2]
[381930955,1756417841085,-984.96,0.0002,2]
[381930956,1756417841095,-151.0,0.0002,2]
[381930957,1756417841106,-152.614595,0.0002,2]
[381930958,1756417841118,-151.0,0.0002,2]
[381930959,1756417841130,-480.0,0.0002,2]
[381930960,1756417841141,-151.0,0.0002,2]
[381930961,1756417841151,-151.0,0.0002,2]
[381930962,1756417841162,-491.81,0.0002,2]
[381930963,1756417841173,-480.0,0.0002,2]
[381930964,1756417841184,-480.0,0.0002,2]
[381930965,1756417841196,-480.0,0.0002,2]
[381930966,1756417841208,-1374.55,0.0002,2]
[381930967,1756417841219,-480.0,0.0002,2]
[381930968,1756417841230,-151.0,0.0002,2]
[381930969,1756417841240,-151.0,0.0002,2]
[381930970,1756417841250,-151.0,0.0002,2]
[381930971,1756417841260,-151.0,0.0002,2]
[381930972,1756417841270,-151.0,0.0002,2]
[381930973,1756417841281,-151.0,0.0002,2]
[381930974,1756417841292,-151.0,0.0002,2]
[381930975,1756417841303,-151.0,0.0002,2]
[381930976,1756417841314,-256.079318,0.0002,2]
[381930977,1756417841325,-151.0,0.0002,2]
[381930978,1756417841336,-151.0,0.0002,2]
[381930979,1756417841346,-151.0,0.0002,2]
[381930980,1756417841357,-151.0,0.0002,2]
[381930981,1756417841368,-276.064338,0.0002,2]
[381930982,1756417841379,-151.0,0.0002,2]
[381930983,1756417841390,-244.93608318,0.0002,2]
[381930984,1756417841402,-151.0,0.0002,2]
[381930985,1756417841413,-151.0,0.0002,2]
[381930986,1756417841424,-151.0,0.0002,2]
[381930987,1756417841436,-151.0,0.0002,2]
[381930988,1756417841448,-151.0,0.0002,2]
[381930989,1756417841460,-151.0,0.0002,2]
[381930990,1756417841472,-151.0,0.0002,2]
[381930991,1756417841482,-480.0,0.0002,2]
[381930992,1756417841492,-151.0,0.0002,2]
[381930993,1756417841503,-2551.36,0.0002,2]
[381930994,1756417841512,-151.0,0.0002,2]
[381930995,1756417841523,-480.0,0.0002,2]
[381930996,1756417841533,-151.0,0.0002,2]
[381930997,1756417841543,-363.392158,0.0002,2]
[381930998,1756417841554,-151.0,0.0002,2]
[381930999,1756417841565,-363.392158,0.0002,2]
[381931000,1756417841577,-203.286608,0.0002,2]
[381931001,1756417841589,-480.0,0.0002,2]
[381931002,1756417841601,-151.0,0.0002,2]
[381931003,1756417841613,-168.824,0.0002,2]
[381931004,1756417841623,-363.392158,0.0002,2]
[381931005,1756417841634,-203.286608,0.0002,2]
[381931006,1756417841644,-837.6,0.0002,2]
[381931007,1756417841654,-363.392158,0.0002,2]
[381931008,1756417841665,-203.286608,0.0002,2]
[381931009,1756417841676,-203.286608,0.0002,2]
[381931010,1756417841688,-151.0,0.0002,2]
[381931011,1756417841699,-2372.0,0.0002,2]
[381931012,1756417841711,-160.0,0.0002,3]
[381931013,1756417841721,-480.0,0.0002,2]
[381931014,1756417841731,-518.868986,0.0002,2]
[381931015,1756417841743,-960.11,0.0002,2]
[381931016,1756417841754,-518.868986,0.0002,2]
[381931017,1756417841765,-518.868986,0.0002,2]
[381931018,1756417841776,-151.0,0.0002,2]
[381931019,1756417841787,-518.868986,0.0002,2]
[381931020,1756417841797,-1355.92,0.0002,2]
[381931021,1756417841808,-151.0,0.0002,2]
[381931022,1756417841818,-151.0,0.0002,2]
[381931023,1756417841828,-151.0,0.0002,2]
[381931024,1756417841839,-151.0,0.0002,2]
[381931025,1756417841849,-151.0,0.0002,2]
[381931026,1756417841861,-480.0,0.0002,2]
[381931027,1756417841872,-151.0,0.0002,2]
[381931028,1756417841884,-151.0,0.0002,2]
[381931029,1756417841897,-151.0,0.0002,2]
[381931030,1756417841907,-151.0,0.0002,2]
[381931031,1756417841918,-183.6852746,0.00020137,2]
[381931032,1756417841929,-228.839803,0.00020187,2]
[381931033,1756417841939,-22035.86211939,0.00020197,2]
[381931034,1756417841950,-160.0,0.00020237,2]
[381931035,1756417841960,-845.47023312,0.00020237,2]
[381931036,1756417841970,-160.0,0.00020237,2]
[381931037,1756417841980,-216.18903889,0.00020237,2]
[381931038,1756417841992,-529.67291817,0.00020237,2]
[381931039,1756417842002,-160.0,0.00020237,2]
[381931040,1756417842014,-160.0,0.00020237,2]
[381931041,1756417842024,-232.64478309,0.00020237,2]
[381931042,1756417842034,-12710.44222334,0.00020237,2]
[381931043,1756417842045,-425.52029335,0.00020237,2]
[381931044,1756417842055,-160.0,0.00020237,2]
[381931045,1756417842065,-217.27834477,0.00020237,2]
[381931046,1756417842075,-417.15472785,0.00020237,2]
[381931047,1756417842085,-160.0,0.00020237,2]
[381931048,1756417842095,-160.0,0.00020237,2]
[381931049,1756417842105,-151.0,0.00020237,2]
[381931050,1756417842116,-151.0,0.00020237,2]
[381931051,1756417842126,-151.0,0.00020237,2]
[381931052,1756417842136,-222.811961,0.00020237,2]
[381931053,1756417842146,-151.0,0.00020237,2]
[381931054,1756417842160,-151.0,0.00020237,2]
[381931055,1756417842171,-151.0,0.00020237,2]
[381931056,1756417842181,-151.0,0.00020237,2]
[381931057,1756417842191,-151.0,0.00020237,2]
[381931058,1756417842202,-151.0,0.00020237,2]
[381931059,1756417842212,-151.0,0.00020237,2]
[381931060,1756417842222,-151.0,0.00020237,2]
[381931061,1756417842235,-239.149456,0.00020237,2]
[381931062,1756417842246,-151.0,0.00020237,2]
[381931063,1756417842256,-151.0,0.00020237,2]
[381931064,1756417842266,-153.708351,0.00020237,2]
[381931065,1756417842276,-151.0,0.00020237,2]
[381931066,1756417842287,-151.0,0.00020237,2]
[381931067,1756417842297,-151.0,0.00020237,2]
[381931068,1756417842307,-151.0,0.00020237,2]
[381931069,1756417842317,-363.392158,0.00020237,2]
[381931070,1756417842329,-151.0,0.00020237,2]
[381931071,1756417842339,-363.392158,0.00020237,2]
[381931072,1756417842349,-151.0,0.00020237,2]
[381931073,1756417842359,-203.286608,0.00020237,2]
[381931074,1756417842370,-363.392158,0.00020237,2]
[381931075,1756417842380,-203.286608,0.00020237,2]
[381931076,1756417842390,-363.392158,0.00020237,2]
[381931077,1756417842400,-203.286608,0.00020237,2]
[381931078,1756417842411,-203.286608,0.00020237,2]
[381931079,1756417842422,-518.868986,0.00020237,2]
[381931080,1756417842433,-518.868986,0.00020237,2]
[381931081,1756417842443,-518.868986,0.00020237,2]
[381931082,1756417842454,-151.0,0.00020237,2]
[381931083,1756417842464,-518.868986,0.00020237,2]
[381931084,1756417842475,-151.0,0.00020237,2]
[381931085,1756417842642,-151.0,0.00020237,2]
[381931086,1756417842652,-152.256969,0.00020237,2]
[381931087,1756417842662,-151.0,0.00020237,2]
[381931088,1756417842671,-151.0,0.00020237,2]
[381931089,1756417842680,-151.0,0.00020237,2]
[381931090,1756417842689,-500.0,0.00020273,2]
[381931091,1756417842699,-645.11635765,0.00020273,2]
[381931092,1756417842708,-500.0,0.00020273,2]
[381931093,1756417842717,-500.0,0.00020273,2]
[381931094,1756417842726,-352.414598,0.00020273,2]
[381931095,1756417842736,-352.414598,0.00020273,2]
[381931096,1756417842745,-352.414598,0.00020273,2]
[381931097,1756417842754,-352.414598,0.00020273,2]
[381931098,1756417842763,-151.0,0.00020273,2]
[381931099,1756417842773,-151.0,0.00020273,2]
[381931100,1756417842782,-151.0,0.00020273,2]
[381931101,1756417842791,-151.0,0.00020273,2]
[381931102,1756417842800,-151.0,0.00020273,2]
[381931103,1756417842809,-151.0,0.00020273,2]
[381931104,1756417842818,-151.0,0.00020273,2]
[381931106,1756417842827,-151.0,0.00020273,2]
[381931107,1756417842836,-151.0,0.00020273,2]
[381931108,1756417842845,-480.0,0.00020273,2]
[381931109,1756417842854,-480.0,0.00020273,2]
[381931110,1756417842863,-151.0,0.00020273,2]
[381931111,1756417842872,-564.521317,0.00020273,2]
[381931112,1756417842881,-564.521317,0.00020273,2]
[381931113,1756417842890,-564.521317,0.00020273,2]
[381931114,1756417842899,-564.521317,0.00020273,2]
[381931115,1756417842908,-151.0,0.00020273,2]
[381931116,1756417842917,-151.0,0.00020273,2]
[381931117,1756417842926,-285.952915,0.00020273,2]
[381931118,1756417842935,-285.952915,0.00020273,2]
[381931119,1756417842944,-285.952915,0.00020273,2]
[381931120,1756417842953,-285.952915,0.00020273,2]
[381931121,1756417842962,-984.96,0.00020273,2]
[381931122,1756417842971,-151.0,0.00020273,2]
[381931123,1756417842981,-151.0,0.00020273,2]
[381931124,1756417842989,-480.0,0.00020273,2]
[381931125,1756417842998,-151.0,0.00020273,2]
[381931126,1756417843007,-480.0,0.00020273,2]
[381931127,1756417843016,-480.0,0.00020273,2]
[381931128,1756417843025,-480.0,0.00020273,2]
[381931129,1756417843035,-263.54210536,0.00020273,2]
[381931132,1756417843044,-1374.55,0.00020273,2]
[381931134,1756417843053,-480.0,0.00020273,2]
[381931136,1756417843063,-2551.36,0.00020273,2]
[381931138,1756417843072,-480.0,0.00020273,2]
[381931140,1756417843081,-480.0,0.00020273,2]
[381931142,1756417843090,-837.6,0.00020273,2]
[381931144,1756417843099,-2372.0,0.00020273,2]
[381931145,1756417843108,-515.32594985,0.00020273,2]
[381931147,1756417843117,-960.11,0.00020273,2]
[381931149,1756417843126,-1355.92,0.00020273,2]
[381931150,1756417843135,-480.0,0.00020273,2]
[381931152,1756417843146,-151.0,0.00020297,2]
[381931154,1756417843155,-151.0,0.00020297,2]
[381931156,1756417843164,-151.0,0.00020297,2]
[381931158,1756417843173,-151.0,0.00020297,2]
[381931159,1756417843182,-151.0,0.00020297,2]
[381931160,1756417843191,-151.0,0.00020297,2]
[381931161,1756417843200,-151.0,0.00020297,2]
[381931162,1756417843209,-151.0,0.00020297,2]
[381931163,1756417843218,-151.0,0.00020297,2]
[381931164,1756417843227,-151.0,0.00020297,2]
[381931165,1756417843236,-151.0,0.00020297,2]
[381931166,1756417843245,-151.0,0.00020297,2]
[381931167,1756417843254,-151.0,0.00020344,2]
[381931168,1756417843263,-151.0,0.00020344,2]
[381931169,1756417843272,-151.0,0.00020344,2]
[381931171,1756417843282,-151.0,0.00020344,2]
[381931173,1756417843290,-151.0,0.00020344,2]
[381931175,1756417843299,-151.0,0.00020344,2]
[381931177,1756417843308,-151.0,0.00020344,2]
[381931179,1756417843317,-151.0,0.00020344,2]
[381931180,1756417843326,-600.0,0.00020399,20]
[381931181,1756417843335,-3389.54824217,0.000205,2]
[381931182,1756417843344,-480.0,0.00020547,2]
[381931183,1756417843353,-984.96,0.00020547,2]
[381931184,1756417843362,-480.0,0.00020547,2]
[381931185,1756417843371,-1374.55,0.00020547,2]
[381931186,1756417843380,-480.0,0.00020547,2]
[381931187,1756417843389,-2551.36,0.00020547,2]
[381931188,1756417843398,-480.0,0.00020547,2]
[381931189,1756417843407,-480.0,0.00020547,2]
[381931190,1756417843417,-837.6,0.00020547,2]
[381931191,1756417843426,-2372.0,0.00020547,2]
[381931192,1756417843435,-960.11,0.00020547,2]
[381931193,1756417843444,-1355.92,0.00020547,2]
[381931194,1756417843454,-151.0,0.00020547,2]
[381931195,1756417843464,-151.0,0.00020547,2]
[381931196,1756417843474,-480.0,0.00020547,2]
[381931197,1756417843483,-151.0,0.00020547,2]
[381931198,1756417843492,-151.0,0.00020547,2]
[381931199,1756417843501,-271.150112,0.00020547,2]
[381931200,1756417843511,-352.414598,0.0002062,2]
[381931201,1756417843521,-352.414598,0.0002062,2]
[381931202,1756417843530,-352.414598,0.0002062,2]
[381931203,1756417843539,-352.414598,0.0002062,2]
[381931204,1756417843549,-151.0,0.0002062,2]
[381931206,1756417843558,-151.0,0.0002062,2]
[381931208,1756417843567,-151.0,0.0002062,2]
[381931210,1756417843576,-151.0,0.0002062,2]
[381931212,1756417843585,-151.0,0.0002062,2]
[381931213,1756417843594,-151.0,0.0002062,2]
[381931214,1756417843604,-151.0,0.0002062,2]
[381931215,1756417843613,-151.0,0.0002062,2]
[381931217,1756417843622,-151.0,0.0002062,2]
[381931218,1756417843631,-151.0,0.0002062,2]
[381931219,1756417843640,-151.0,0.0002062,2]
[381931220,1756417843649,-151.0,0.0002062,2]
[381931221,1756417843659,-151.0,0.0002062,2]
[381931222,1756417843667,-151.0,0.0002062,2]
[381931223,1756417843677,-151.0,0.0002062,2]
[381931224,1756417843686,-151.0,0.0002062,2]
[381931225,1756417843695,-153.196318,0.0002062,2]
[381931226,1756417843704,-1000.0,0.0002062,2]
[381931227,1756417843713,-1000.0,0.0002062,2]
[381931228,1756417843723,-1000.0,0.0002062,2]
[381931229,1756417843731,-1000.0,0.0002062,2]
[381931230,1756417843742,-1000.0,0.0002062,2]
[381931231,1756417843751,-1000.0,0.0002062,2]
[381931232,1756417843760,-1000.0,0.0002062,2]
[381931233,1756417843769,-1000.0,0.0002062,2]
[381931234,1756417843778,-1000.0,0.0002062,2]
[381931235,1756417843787,-1000.0,0.0002062,2]
[381931236,1756417843796,-1000.0,0.0002062,2]
[381931237,1756417843806,-1000.0,0.0002062,2]
[381931238,1756417843815,-1000.0,0.0002062,2]
[381931239,1756417843824,-511.008133,0.0002062,2]
[381931240,1756417843833,-151.0,0.0002062,2]
[381931241,1756417843843,-151.0,0.0002062,2]
[381931242,1756417843852,-151.0,0.0002062,2]
[381931243,1756417843861,-151.0,0.0002062,2]
[381931244,1756417843870,-216.063153,0.0002062,2]
[381931245,1756417843879,-151.0,0.0002062,2]
[381931246,1756417843888,-363.392158,0.0002062,2]
[381931247,1756417843898,-151.0,0.0002062,2]
[381931248,1756417843907,-363.392158,0.0002062,2]
[381931249,1756417843916,-151.0,0.0002062,2]
[381931250,1756417843926,-203.286608,0.0002062,2]
[381931251,1756417843935,-363.392158,0.0002062,2]
[381931252,1756417843944,-203.286608,0.0002062,2]
[381931253,1756417843954,-363.392158,0.0002062,2]
[381931254,1756417843963,-203.286608,0.0002062,2]
[381931255,1756417843972,-203.286608,0.0002062,2]
[381931256,1756417843981,-518.868986,0.0002062,2]
[381931257,1756417843990,-518.868986,0.0002062,2]
[381931258,1756417844000,-518.868986,0.0002062,2]
[381931259,1756417844009,-151.0,0.0002062,2]
[381931260,1756417844019,-518.868986,0.0002062,2]
[381931261,1756417844028,-1275.78100268,0.00020721,2]
[381931262,1756417844037,-1000.0,0.00020821,2]
[381931263,1756417844046,-480.0,0.00020821,2]
[381931264,1756417844055,-984.96,0.00020821,2]
[381931265,1756417844064,-480.0,0.00020821,2]
[381931266,1756417844074,-1374.55,0.00020821,2]
[381931267,1756417844083,-480.0,0.00020821,2]
[381931268,1756417844092,-2551.36,0.00020821,2]
[381931269,1756417844102,-480.0,0.00020821,2]
[381931270,1756417844111,-480.0,0.00020821,2]
[381931271,1756417844120,-837.6,0.00020821,2]
[381931272,1756417844129,-2372.0,0.00020821,2]
[381931273,1756417844139,-960.11,0.00020821,2]
[381931274,1756417844148,-1355.92,0.00020821,2]
[381931275,1756417844160,-480.0,0.00020821,2]
[381931276,1756417844169,-151.0,0.00020894,2]
[381931277,1756417844179,-564.521317,0.00020894,2]
[381931278,1756417844188,-564.521317,0.00020894,2]
[381931279,1756417844198,-564.521317,0.00020894,2]
[381931280,1756417844207,-564.521317,0.00020894,2]
[381931281,1756417844216,-151.0,0.00020894,2]
[381931282,1756417844227,-151.0,0.00020894,2]
[381931283,1756417844236,-285.952915,0.00020894,2]
[381931284,1756417844246,-285.952915,0.00020894,2]
[381931285,1756417844255,-285.952915,0.00020894,2]
[381931286,1756417844264,-285.952915,0.00020894,2]
[381931287,1756417844273,-151.0,0.00020894,2]
[381931288,1756417844283,-151.0,0.00020894,2]
[381931289,1756417844291,-151.0,0.00020894,2]
[381931290,1756417844301,-1000.0,0.000209,2]
[381931291,1756417844311,-1000.0,0.000209,2]
[381931292,1756417844320,-1000.0,0.000209,2]
[381931293,1756417844329,-1000.0,0.000209,2]
[381931294,1756417844339,-1000.0,0.000209,2]
[381931295,1756417844348,-1958.45470318,0.0002098,2]
[381931296,1756417844357,-1000.0,0.00021,2]
[381931297,1756417844366,-1000.0,0.00021,2]
[381931298,1756417844375,-151.422193,0.00021095,2]
[381931299,1756417844384,-151.0,0.00021095,2]
[381931300,1756417844394,-151.0,0.00021095,2]
[381931301,1756417844403,-151.0,0.00021095,2]
[381931302,1756417844412,-612.82589064,0.00021095,2]
[381931303,1756417844422,-984.96,0.00021095,2]
[381931304,1756417844432,-480.0,0.00021095,2]
[381931305,1756417844442,-1374.55,0.00021095,2]
[381931306,1756417844451,-480.0,0.00021095,2]
[381931307,1756417844460,-2551.36,0.00021095,2]
[381931308,1756417844470,-480.0,0.00021095,2]
[381931309,1756417844480,-151.0,0.00021095,2]
[381931310,1756417844489,-363.392158,0.00021095,2]
[381931311,1756417844499,-480.0,0.00021095,2]
[381931312,1756417844508,-363.392158,0.00021095,2]
[381931313,1756417844517,-151.0,0.00021095,2]
[381931314,1756417844527,-203.286608,0.00021095,2]
[381931315,1756417844536,-363.392158,0.00021095,2]
[381931316,1756417844545,-203.286608,0.00021095,2]
[381931317,1756417844555,-837.6,0.00021095,2]
[381931318,1756417844563,-363.392158,0.00021095,2]
[381931319,1756417844573,-203.286608,0.00021095,2]
[381931320,1756417844582,-203.286608,0.00021095,2]
[381931321,1756417844591,-2372.0,0.00021095,2]
[381931322,1756417844600,-518.868986,0.00021095,2]
[381931323,1756417844609,-518.868986,0.00021095,2]
[381931324,1756417844619,-960.11,0.00021095,2]
[381931325,1756417844628,-518.868986,0.00021095,2]
[381931326,1756417844637,-151.0,0.00021095,2]
[381931327,1756417844646,-518.868986,0.00021095,2]
[381931328,1756417844656,-1355.92,0.00021095,2]
[381931329,1756417844666,-151.0,0.00021095,2]
[381931330,1756417844675,-151.0,0.00021095,2]
[381931331,1756417844685,-480.0,0.00021095,2]
[381931332,1756417844694,-151.0,0.00021095,2]
[381931333,1756417844703,-151.0,0.00021095,2]
[381931334,1756417844711,-151.0,0.00021166,2]
[381931335,1756417844721,-151.0,0.00021166,2]
[381931336,1756417844730,-151.0,0.00021166,2]
[381931337,1756417844739,-151.0,0.00021166,2]
[381931338,1756417844748,-152.074567,0.00021168,2]
[381931339,1756417844757,-194.72792766,0.00021181,2]
[381931340,1756417844767,-160.0,0.00021209,2]
[381931341,1756417844776,-151.0,0.00021263,2]
[381931342,1756417844785,-151.0,0.00021263,2]
[381931343,1756417844794,-151.0,0.00021263,2]
[381931344,1756417844803,-151.0,0.00021263,2]
[381931345,1756417844812,-564.521317,0.00021263,2]
[381931346,1756417844821,-564.521317,0.00021263,2]
[381931347,1756417844830,-564.521317,0.00021263,2]
[381931348,1756417844839,-564.521317,0.00021263,2]
[381931349,1756417844848,-151.0,0.00021263,2]
[381931350,1756417844857,-151.0,0.00021263,2]
[381931351,1756417844867,-285.952915,0.00021263,2]
[381931352,1756417844876,-285.952915,0.00021263,2]
[381931353,1756417844884,-285.952915,0.00021263,2]
[381931354,1756417844894,-285.952915,0.00021263,2]
[381931355,1756417844903,-151.0,0.00021263,2]
[381931356,1756417844912,-151.0,0.00021263,2]
[381931357,1756417844922,-151.0,0.00021263,2]
[381931358,1756417844932,-151.0,0.00021263,2]
[381931359,1756417844942,-151.0,0.00021263,2]
[381931360,1756417844951,-151.0,0.00021263,2]
[381931361,1756417844960,-151.0,0.00021263,2]
[381931362,1756417844969,-151.0,0.00021263,2]
[381931363,1756417844978,-151.0,0.00021263,2]
[381931364,1756417844987,-151.0,0.00021263,2]
[381931365,1756417844997,-151.0,0.00021263,2]
[381931366,1756417845006,-151.0,0.00021263,2]
[381931367,1756417845015,-151.0,0.00021263,2]
[381931368,1756417845025,-151.0,0.00021263,2]
[381931369,1756417845034,-151.0,0.00021263,2]
[381931370,1756417845044,-151.0,0.00021263,2]
[381931371,1756417845053,-151.0,0.00021263,2]
[381931372,1756417845063,-151.0,0.00021263,2]
[381931373,1756417845072,-363.392158,0.00021263,2]
[381931374,1756417845082,-363.392158,0.00021263,2]
[381931375,1756417845091,-203.286608,0.00021263,2]
[381931376,1756417845100,-363.392158,0.00021263,2]
[381931377,1756417845109,-203.286608,0.00021263,2]
[381931378,1756417845118,-363.39215031,0.00021263,2]
[381931379,1756417845127,-203.286608,0.00021263,2]
[381931380,1756417845137,-203.286607,0.00021263,2]
[381931381,1756417845146,-518.868986,0.00021263,2]
[381931382,1756417845155,-518.868986,0.00021263,2]
[381931383,1756417845164,-518.868986,0.00021263,2]
[381931384,1756417845174,-151.64,0.00021263,2]
[381931385,1756417845184,-518.868981,0.00021263,2]
[381931386,1756417845193,-151.0,0.00021263,2]
[381931387,1756417845203,-151.0,0.00021263,2]
[381931388,1756417845212,-151.0,0.00021263,2]
[381931389,1756417845221,-100000.0,0.00021263,2]
[381931390,1756417845230,-500.0,0.00021273,2]
[381931391,1756417845239,-500.0,0.00021273,2]
[381931392,1756417845248,-183.68527459,0.00021303,2]
[381931393,1756417845258,-1500.0,0.00021368,2]
[381931394,1756417845267,-151.0,0.00021369,2]
[381931395,1756417845276,-184.015864,0.00021369,2]
[381931396,1756417845285,-151.0,0.00021369,2]
[381931397,1756417845295,-984.96,0.00021369,2]